bitfinex/quotes_ETHUSD_20240820
["timestamp","ask_amount","ask_price","bid_price","bid_amount"]
[1724170953715,0.07120452,2581.7,2581.6,10.43739]
[1724170954004,0.07089196,2581.7,2581.6,10.98739]
[1724170954214,3.87312,2581.9,2581.6,10.98739]
[1724170954410,0.07095678,2581.8,2581.7,0.55]
[1724170954564,0.07095678,2581.8,2581.7,11.529809]
[1724170954764,6.87308,2582.0,2581.7,11.529809]
[1724170954958,0.0710216,2581.9,2581.7,11.529809]
[1724170955483,0.0710216,2581.9,2581.7,11.918509]
[1724170955808,0.0710216,2581.9,2581.8,1.1918509]
[1724170956100,0.0710216,2581.9,2581.8,2.1305509]
[1724170956271,0.0710216,2581.9,2581.8,11.5840509]
[1724170956659,0.0710216,2581.9,2581.8,11.9727509]
[1724170956898,7.74582,2582.1,2581.8,11.9727509]
[1724170957106,0.0708675,2581.9,2581.8,11.9727509]
[1724170957561,7.74582,2582.1,2581.8,11.9727509]
[1724170957761,0.07093232,2582.0,2581.9,0.9387]
[1724170958273,3.94389232,2582.0,2581.9,0.9387]
[1724170958918,7.81685232,2582.0,2581.9,0.55]
[1724170960312,3.94389232,2582.0,2581.9,0.55]
[1724170961363,0.07093232,2582.0,2581.9,1.62809]
[1724170961631,3.87279,2582.2,2581.9,1.62809]
[1724170961833,0.07108291,2582.1,2581.9,1.62809]
[1724170963147,3.94389291,2582.1,2581.9,1.62809]
[1724170963349,3.94389291,2582.1,2581.9,0.55]
[1724170963823,7.81678291,2582.1,2581.9,0.55]
[1724170964143,7.81679291,2582.1,2581.9,0.55]
[1724170964301,3.94389291,2582.1,2581.9,0.55]
[1724170964511,0.07108291,2582.1,2582.0,0.3887]
[1724170964834,3.94389291,2582.1,2582.0,0.9387]
[1724170967231,7.81670291,2582.1,2582.0,0.9387]
[1724170968743,3.94389291,2582.1,2581.6,0.3887]
[1724170969049,3.87334,2581.8,2581.6,0.3887]
[1724170969422,0.06818506,2581.7,2581.6,0.3887]
[1724170969629,3.87334,2581.8,2581.6,0.3887]
[1724170969822,3.94157023,2581.7,2581.6,0.3887]
[1724170970037,3.94157023,2581.7,2581.6,0.9387]
[1724170970564,7.81498023,2581.7,2581.6,0.9387]
[1724170970857,7.87266539,2581.7,2581.6,0.9387]
[1724170972652,7.81498023,2581.7,2581.6,0.9387]
[1724170973037,3.94157023,2581.7,2581.6,0.9387]
[1724170978576,7.81498023,2581.7,2581.6,0.9387]
[1724170980228,3.94157023,2581.7,2581.6,0.9387]
[1724170982923,0.06816023,2581.7,2581.6,0.9387]
[1724170983124,0.06816023,2581.7,2581.6,10.2874]
[1724170983364,3.87321,2581.9,2581.6,11.31614]
[1724170983525,3.40562293,2582.0,2581.6,11.31614]
[1724170983526,4.27861293,2582.0,2581.7,0.55]
[1724170983867,3.87312,2581.9,2581.7,0.55]
[1724170984243,3.87326,2581.8,2581.7,0.55]
[1724170984926,4.27871293,2582.0,2581.7,0.55]
[1724170985127,6.87317,2581.9,2581.7,0.55]
[1724170985434,3.87326,2581.8,2581.7,0.55]
[1724170985640,3.0,2581.9,2581.7,0.55]
[1724170986068,6.87311,2581.9,2581.7,0.55]
[1724170986847,3.87326,2581.8,2581.7,0.55]
[1724170988144,3.94147339,2581.8,2581.7,0.55]
[1724170988525,0.06821339,2581.8,2581.7,0.55]
[1724170988729,0.06821339,2581.8,2581.7,1.57874]
[1724170989082,0.06821339,2581.8,2581.7,11.09344]
[1724170989231,3.87269,2582.2,2581.7,11.09344]
[1724170989432,0.0684501,2582.1,2581.7,11.09344]
[1724170990136,3.9412701,2582.1,2581.7,11.09344]
[1724170990337,3.9412701,2582.1,2581.7,10.0647]
[1724170994471,3.9412701,2582.1,2581.8,19.47]
[1724170994680,3.9412701,2582.1,2581.9,0.9387]
[1724170995207,3.87296,2582.0,2581.9,0.9387]
[1724170995548,3.94138483,2582.0,2581.9,0.9387]
[1724170995704,0.06842483,2582.0,2581.9,13.39607]
[1724170995905,0.06842483,2582.0,2581.9,32.86607]
[1724170996058,0.40556631,2582.5,2581.9,28.22917]
[1724170996265,3.87144,2583.1,2582.3,9.8926]
[1724170996266,0.06592931,2582.4,2582.3,9.8926]
[1724170996463,0.40546167,2583.0,2582.3,19.8587]
[1724170996704,0.40546167,2583.0,2582.5,9.7237]
[1724170996874,0.40546167,2583.0,2582.3,19.47]
[1724170996875,0.06641696,2582.9,2582.8,9.7237]
[1724170997074,3.87096,2583.4,2582.8,9.7237]
[1724170997295,3.93764274,2583.3,2582.9,1.52237]
[1724170998491,0.06662274,2583.3,2582.9,1.52237]
[1724170998694,0.06662274,2583.3,2583.0,9.8693]
[1724170998893,4.27607204,2583.6,2583.1,0.55]
[1724170999080,0.06663615,2583.2,2583.1,20.02]
[1724170999315,8.14677204,2583.6,2583.1,23.75531554]
[1724170999316,3.87066,2583.6,2583.1,23.75531554]
[1724170999641,4.27510461,2584.2,2583.3,10.1189]
[1724170999794,0.06692987,2583.5,2583.4,19.8587]
[1724171000007,4.27510461,2584.2,2583.5,10.1189]
[1724171000194,0.40533461,2584.2,2583.6,19.8587]
[1724171000395,4.36373885,2584.4,2583.4,10.13687]
[1724171000396,0.06728312,2584.1,2583.8,9.7302]
[1724171000612,0.06728312,2584.1,2584.0,0.3887]
[1724171000917,7.73837,2584.6,2584.1,0.3887]
[1724171001243,7.73837,2584.6,2584.2,19.47]
[1724171001244,3.86907,2584.6,2584.2,19.47]
[1724171001424,0.40523809,2584.7,2584.3,0.55]
[1724171001425,4.27417809,2584.7,2584.3,0.55]
[1724171002043,3.86908,2584.6,2584.3,0.9387]
[1724171002246,0.40523809,2584.7,2584.4,9.6795]
[1724171002411,3.86775,2585.5,2584.5,1.61182]
[1724171002412,7.73709,2585.0,2584.5,1.61182]
[1724171002600,3.8685,2585.0,2584.5,1.61182]
[1724171002795,3.8685,2585.0,2584.5,2.00052]
[1724171003147,0.06569338,2584.9,2584.5,2.00052]
[1724171003843,3.93440338,2584.9,2584.6,9.6795]
[1724171004145,3.93440338,2584.9,2584.7,0.55]
[1724171004359,3.86877,2584.8,2584.7,0.55]
[1724171004518,7.73754,2584.8,2584.7,0.55]
[1724171004844,3.8699,2584.1,2583.9,0.3887]
[1724171005001,3.86931,2584.5,2583.9,4.07864285]
[1724171005404,3.065641,2584.4,2583.9,4.07864285]
[1724171005900,3.86941,2584.4,2583.9,4.07864285]
[1724171006441,0.06550756,2584.3,2584.1,9.4381]
[1724171006598,0.06550756,2584.3,2584.2,0.55]
[1724171006795,3.0,2584.4,2584.2,0.55]
[1724171006999,0.06551823,2584.3,2584.2,0.55]
[1724171007200,0.06551823,2584.3,2584.2,1.58768]
[1724171007446,3.86856,2585.0,2584.2,1.97638]
[1724171007601,0.06520843,2584.3,2584.2,1.97638]
[1724171007809,3.86877,2584.8,2584.2,21.44638]
[1724171008328,0.0655205,2584.7,2584.2,21.44638]
[1724171008532,0.0655205,2584.7,2584.3,3.088448]
[1724171008731,3.86877,2584.8,2584.4,0.55]
[1724171008953,0.06548418,2584.6,2584.4,0.55]
[1724171009247,3.0,2584.9,2584.5,9.1894]
[1724171009542,0.06549526,2584.8,2584.6,20.4087]
[1724171009744,0.06549526,2584.8,2584.7,2.95981]
[1724171010050,6.86825,2585.2,2584.7,3.50981]
[1724171010215,6.86825,2585.2,2584.8,0.55]
[1724171010216,3.86836,2585.1,2584.8,0.55]
[1724171010421,3.0,2585.0,2584.8,0.55]
[1724171010745,3.0,2585.0,2584.8,2.886851]
[1724171010960,0.06578086,2584.9,2584.8,2.886851]
[1724171011313,0.06465133,2584.9,2584.8,2.886851]
[1724171011822,0.06465133,2584.9,2584.8,11.924251]
[1724171012424,6.86836,2585.1,2584.8,31.394251]
[1724171012627,6.86836,2585.1,2584.9,3.4354061]
[1724171012834,6.86836,2585.1,2585.0,0.55]
[1724171013406,3.86825,2585.2,2585.0,0.55]
[1724171014958,3.86832,2585.1,2585.0,0.55]
[1724171015363,3.86825,2585.2,2585.0,0.55]
[1724171015871,7.73653,2585.2,2585.0,0.55]
[1724171016057,3.86832,2585.1,2585.0,0.55]
[1724171016226,7.73694,2585.0,2584.9,0.55]
[1724171016426,3.86872,2584.9,2584.8,0.55]
[1724171017285,7.73744,2584.9,2584.8,0.55]
[1724171017868,3.86872,2584.9,2584.8,0.55]
[1724171018591,3.86839,2585.1,2584.6,0.55]
[1724171018791,3.86824,2585.2,2584.7,0.97369]
[1724171018988,0.06581655,2585.0,2584.8,0.55]
[1724171019198,3.0,2585.1,2584.8,0.55]
[1724171019349,0.06571262,2584.9,2584.8,0.55]
[1724171019549,3.0,2585.1,2584.8,0.55]
[1724171019773,3.0,2585.1,2584.9,9.7807]
[1724171019952,3.0,2585.1,2585.0,0.55]
[1724171020899,6.86832,2585.1,2585.0,0.55]
[1724171021265,3.0,2585.1,2585.0,9.6719]
[1724171021451,3.0,2585.2,2585.0,9.6719]
[1724171022054,3.86788,2585.4,2585.0,10.63909]
[1724171023405,7.73584,2585.4,2585.0,10.63909]
[1724171024064,3.86788,2585.4,2585.0,10.63909]
[1724171024270,3.86773,2585.5,2585.0,10.63909]
[1724171024668,7.27259626,2585.7,2585.0,11.02779]
[1724171024888,7.27259626,2585.7,2585.1,1.452609]
[1724171025201,7.27259626,2585.7,2585.2,0.9387]
[1724171025606,7.27259626,2585.7,2585.3,9.5683]
[1724171025822,3.86759,2585.6,2585.4,0.55]
[1724171026030,6.86772,2585.5,2585.4,0.55]
[1724171031692,3.86759,2585.6,2585.4,0.55]
[1724171031938,3.86772,2585.5,2585.4,0.55]
[1724171033199,3.93394873,2585.5,2585.4,0.55]
[1724171039411,0.12391389,2585.5,2585.3,19.47]
[1724171039610,7.73574,2585.4,2585.3,19.47]
[1724171040133,10.80192341,2585.4,2584.8,9.9358]
[1724171040301,3.86818,2585.2,2584.5,9.9732]
[1724171040499,3.86883,2584.8,2584.5,9.9732]
[1724171040724,0.06574493,2584.7,2584.5,9.9732]
[1724171040928,0.06574493,2584.7,2584.2,1.03768]
[1724171040929,3.86901,2584.7,2584.2,11.01088]
[1724171041156,0.06579374,2584.6,2584.2,11.01088]
[1724171041541,3.93487374,2584.6,2584.2,11.01088]
[1724171041774,7.73823,2584.6,2584.2,11.01088]
[1724171041937,0.06578581,2584.5,2584.2,11.01088]
[1724171042145,0.06578581,2584.5,2584.3,1.101088]
[1724171043937,0.06578581,2584.5,2584.4,0.55]
[1724171044685,0.06578581,2584.5,2584.3,0.55]
[1724171044882,0.06578581,2584.5,2584.3,0.9387]
[1724171045400,0.06571762,2584.4,2584.3,0.9387]
[1724171045558,3.86928,2584.5,2584.3,0.9387]
[1724171045891,0.06580273,2584.4,2584.3,0.9387]
[1724171046188,3.86907,2584.6,2584.3,0.9387]
[1724171046359,0.06538389,2584.4,2584.3,0.9387]
[1724171046555,3.86929,2584.5,2584.3,0.9387]
[1724171046773,0.06546903,2584.4,2584.3,0.9387]
[1724171048490,3.93483903,2584.4,2584.3,0.9387]
[1724171049044,7.80420903,2584.4,2584.3,0.9387]
[1724171049690,3.86981,2584.1,2584.0,0.3887]
[1724171050111,3.93504455,2584.1,2583.7,9.9059]
[1724171050245,3.93514455,2584.1,2583.7,9.9059]
[1724171050599,7.80509455,2584.1,2583.7,9.9059]
[1724171050887,7.80504455,2584.1,2583.7,11.67636]
[1724171051189,3.86999,2584.0,2583.7,11.67636]
[1724171051387,3.87012,2583.9,2583.7,9.9059]
[1724171051592,0.06501985,2583.9,2583.8,0.55]
[1724171052088,8.38174078,2584.6,2583.8,0.55]
[1724171052292,0.06501985,2583.9,2583.8,0.55]
[1724171052793,0.06500574,2583.9,2583.8,0.55]
[1724171053099,0.06500574,2583.9,2583.8,11.76156]
[1724171053258,3.86933,2584.5,2583.8,11.76156]
[1724171053462,6.86939,2584.4,2583.8,11.76156]
[1724171053665,3.93465194,2584.4,2583.8,11.76156]
[1724171053885,3.0,2584.3,2584.0,0.3887]
[1724171054082,6.86952,2584.3,2584.1,0.9387]
[1724171054250,3.93476415,2584.2,2584.1,0.55]
[1724171054450,0.06510415,2584.2,2584.1,0.55]
[1724171054898,7.73867,2584.5,2584.1,10.2884]
[1724171054899,6.86938,2584.4,2584.1,10.2884]
[1724171055079,0.06514313,2584.2,2584.1,10.2884]
[1724171055250,3.0,2584.4,2584.1,10.2884]
[1724171055450,0.06516013,2584.2,2584.1,10.2884]
[1724171055767,0.06515899,2584.2,2584.1,10.2884]
[1724171056277,6.86945,2584.4,2584.1,10.2884]
[1724171056479,0.0651306,2584.2,2584.1,10.2884]
[1724171056883,6.86945,2584.4,2584.1,10.2884]
[1724171057093,0.06510221,2584.2,2584.1,10.2884]
[1724171057298,6.86945,2584.4,2584.1,10.2884]
[1724171057499,0.0651306,2584.2,2584.1,10.2884]
[1724171057653,6.86945,2584.4,2584.1,10.2884]
[1724171057855,0.0651197,2584.2,2584.1,10.2884]
[1724171058054,3.86953,2584.3,2584.1,10.2884]
[1724171058254,0.0651197,2584.2,2584.1,10.2884]
[1724171058657,3.86953,2584.3,2584.1,10.2884]
[1724171058859,0.0651197,2584.2,2584.1,10.2884]
[1724171059173,3.86966,2584.2,2584.1,10.2884]
[1724171059514,7.73932,2584.2,2584.1,0.55]
[1724171059667,7.73962,2584.1,2584.0,19.47]
[1724171060069,3.87011,2583.9,2583.8,10.3438]
[1724171060410,3.87011,2583.9,2583.7,19.47]
[1724171060411,7.74052,2583.8,2583.7,19.47]
[1724171061078,7.80555314,2583.8,2583.7,19.47]
[1724171061898,3.93529314,2583.8,2583.7,20.02]
[1724171062415,0.06503314,2583.8,2583.7,20.02]
[1724171062909,3.93529314,2583.8,2583.7,20.02]
[1724171063332,0.06503314,2583.8,2583.7,20.02]
[1724171063528,0.06503314,2583.8,2583.7,23.75531554]
[1724171064428,0.06503314,2583.8,2583.7,20.02]
[1724171064429,3.93529314,2583.8,2583.7,20.02]
[1724171064788,0.06503314,2583.8,2583.7,20.02]
[1724171066033,3.93529314,2583.8,2583.7,20.02]
[1724171066328,0.06503314,2583.8,2583.7,20.02]
[1724171067402,0.06503314,2583.8,2583.7,20.4087]
[1724171068951,0.06503314,2583.8,2583.7,34.03931554]
[1724171069243,6.86973,2584.2,2583.7,34.03931554]
[1724171069397,6.86973,2584.2,2583.9,0.3887]
[1724171069750,0.06482127,2584.1,2584.0,0.9387]
[1724171069905,3.93463127,2584.1,2584.0,0.9387]
[1724171070361,0.06482127,2584.1,2584.0,0.9387]
[1724171070645,3.93463127,2584.1,2584.0,0.9387]
[1724171083502,7.86212643,2584.1,2584.0,0.55]
[1724171083703,7.86212643,2584.1,2583.8,19.47]
[1724171083704,7.74,2584.0,2583.9,0.55]
[1724171084010,7.74,2584.0,2583.8,19.47]
[1724171084011,7.74022,2583.9,2583.8,19.47]
[1724171084420,7.80515233,2583.9,2583.8,19.47]
[1724171085052,7.80515233,2583.9,2583.3,7.41]
[1724171085053,3.87115,2583.3,2583.1,9.8872]
[1724171085269,3.87114,2583.3,2583.1,9.8872]
[1724171085549,0.06459883,2583.2,2583.1,9.8872]
[1724171085756,7.74226,2583.3,2583.1,9.8872]
[1724171085757,3.87112,2583.3,2583.1,9.8872]
[1724171085973,0.06455131,2583.2,2583.1,9.8872]
[1724171086324,3.87112,2583.3,2583.1,9.8872]
[1724171086524,0.06452291,2583.2,2583.1,9.8872]
[1724171086721,3.87112,2583.3,2583.1,9.8872]
[1724171086927,0.06444129,2583.2,2583.1,9.8872]
[1724171087141,3.87112,2583.3,2583.1,9.8872]
[1724171087338,0.0644697,2583.2,2583.1,9.8872]
[1724171087542,3.87109,2583.3,2583.1,9.8872]
[1724171087787,0.06444129,2583.2,2583.1,9.8872]
[1724171088089,3.87109,2583.3,2583.1,9.8872]
[1724171088276,0.06444129,2583.2,2583.1,9.8872]
[1724171088596,3.87109,2583.3,2583.1,9.8872]
[1724171088785,3.87109,2583.3,2583.2,0.55]
[1724171089346,3.87086,2583.4,2583.2,0.55]
[1724171089347,3.87089,2583.4,2583.2,0.55]
[1724171089963,7.74184,2583.4,2583.2,0.55]
[1724171090161,3.87089,2583.4,2583.2,0.55]
[1724171090388,3.87067,2583.6,2583.2,3.26854877]
[1724171090691,3.0,2583.5,2583.2,3.26854877]
[1724171090904,3.0,2583.5,2583.3,9.2753]
[1724171091047,3.87028,2583.8,2583.4,0.9387]
[1724171091048,3.0,2583.7,2583.4,0.9387]
[1724171091556,3.0,2583.8,2583.5,9.2753]
[1724171091793,6.87028,2583.8,2583.6,0.55]
[1724171091994,3.87041,2583.7,2583.6,0.55]
[1724171092289,7.74082,2583.7,2583.6,0.55]
[1724171092644,3.87101,2583.3,2583.2,9.664]
[1724171092843,3.87101,2583.3,2583.2,10.214]
[1724171093056,7.74161,2583.5,2583.2,10.214]
[1724171093274,3.87079,2583.5,2583.3,0.55]
[1724171093480,3.87086,2583.4,2583.3,0.55]
[1724171094368,3.87079,2583.5,2583.3,0.55]
[1724171094797,3.87049,2583.7,2583.3,3.67383134]
[1724171095099,3.0,2583.6,2583.3,3.67383134]
[1724171095301,3.86982,2584.1,2583.5,9.4763]
[1724171095462,3.86982,2584.1,2583.6,20.02]
[1724171095793,7.73974,2584.1,2583.7,0.3887]
[1724171095977,4.4236269,2584.3,2583.7,0.3887]
[1724171096193,7.74022,2583.9,2583.8,0.55]
[1724171096952,7.74022,2583.9,2583.3,9.4234]
[1724171096953,3.87079,2583.5,2583.3,9.4234]
[1724171097366,3.87079,2583.5,2583.3,9.8121]
[1724171097976,3.87063,2583.6,2583.3,9.8121]
[1724171098176,3.87073,2583.5,2583.3,9.8121]
[1724171098418,3.87086,2583.4,2583.3,9.8121]
[1724171098616,3.87086,2583.4,2583.3,0.9387]
[1724171099171,3.87071,2583.6,2583.3,0.9387]
[1724171099510,3.87071,2583.5,2583.4,0.55]
[1724171099817,3.87071,2583.5,2583.3,0.9387]
[1724171100576,3.87057,2583.6,2583.3,0.9387]
[1724171100776,3.87071,2583.5,2583.3,0.9387]
[1724171101824,3.87071,2583.5,2583.0,9.44]
[1724171101825,3.87131,2583.2,2583.0,9.44]
[1724171102022,7.74262,2583.2,2583.0,9.44]
[1724171102318,3.87131,2583.1,2583.0,9.44]
[1724171102685,3.87131,2583.2,2583.0,9.44]
[1724171103182,7.7426,2583.2,2583.0,9.44]
[1724171104018,7.74315,2583.0,2582.9,0.3887]
[1724171104512,3.87157,2583.0,2582.9,0.3887]
[1724171105035,3.87157,2583.0,2582.7,9.6055]
[1724171105036,3.87157,2583.0,2582.8,0.3887]
[1724171105328,3.87128,2583.2,2582.9,0.9387]
[1724171105491,3.87128,2583.2,2583.0,9.6055]
[1724171105692,3.87128,2583.2,2583.1,0.55]
[1724171105893,6.87128,2583.2,2583.1,0.55]
[1724171106418,10.74253,2583.2,2583.1,0.55]
[1724171106590,6.87125,2583.2,2583.1,0.55]
[1724171108415,0.06464019,2583.2,2583.1,0.55]
[1724171108619,6.87081,2583.5,2583.1,0.55]
[1724171108777,6.87075,2583.5,2583.2,9.7214]
[1724171108974,6.87075,2583.5,2583.3,0.9387]
[1724171109183,3.87059,2583.6,2583.3,0.9387]
[1724171109545,7.88872193,2583.8,2583.5,9.7214]
[1724171109546,7.7407,2583.8,2583.5,9.7214]
[1724171109677,3.87042,2583.7,2583.6,0.55]
[1724171110594,7.74075,2583.8,2583.6,0.55]
[1724171110801,6.87008,2584.0,2583.6,0.55]
[1724171110976,4.91792643,2584.1,2583.7,9.0884]
[1724171110977,0.40531565,2584.1,2583.7,9.0884]
[1724171111186,4.27519565,2584.1,2583.8,0.55]
[1724171111587,0.40531565,2584.1,2583.8,0.55]
[1724171111791,3.86997,2584.0,2583.8,0.55]
[1724171112007,3.87011,2583.9,2583.8,0.55]
[1724171112408,3.86997,2584.0,2583.8,0.55]
[1724171112608,7.74022,2583.9,2583.8,0.55]
[1724171113316,7.74052,2583.8,2583.7,19.47]
[1724171113623,10.74052,2583.8,2583.7,19.47]
[1724171115087,6.87026,2583.8,2583.7,20.02]
[1724171116539,6.87026,2583.8,2583.7,0.55]
[1724171117589,3.0,2583.8,2583.7,0.55]
[1724171118278,3.0,2583.9,2583.7,0.55]
[1724171118507,3.0,2583.9,2583.8,0.55]
[1724171118734,3.0,2584.0,2583.8,0.55]
[1724171118996,4.27513565,2584.1,2583.9,9.2719]
[1724171119193,4.27513565,2584.1,2584.0,0.55]
[1724171120518,3.86967,2584.2,2584.0,0.55]
[1724171121848,7.73944,2584.2,2584.0,0.55]
[1724171122220,7.73942,2584.2,2584.0,0.55]
[1724171122412,3.86967,2584.2,2584.0,0.55]
[1724171122630,3.86945,2584.4,2584.1,9.7165]
[1724171122631,7.88779193,2584.4,2584.1,9.7165]
[1724171122814,7.88779193,2584.4,2584.2,0.55]
[1724171122815,3.0,2584.3,2584.2,0.55]
[1724171123032,3.86924,2584.5,2584.2,0.55]
[1724171123216,0.06503228,2584.3,2584.2,1.65240778]
[1724171123423,0.40524803,2584.6,2584.2,30.83890778]
[1724171123677,4.01834193,2585.0,2584.4,9.6375]
[1724171123839,3.86841,2585.1,2584.5,20.09737654]
[1724171124174,3.86841,2585.1,2584.6,10.0262]
[1724171124360,3.86848,2585.0,2584.7,0.55]
[1724171125075,3.0,2584.9,2584.7,0.55]
[1724171125965,4.01834193,2585.5,2584.9,9.7702]
[1724171126191,8.29109889,2585.6,2585.0,0.55]
[1724171126339,4.27275696,2585.6,2585.0,20.4087]
[1724171126766,4.27275696,2585.6,2585.0,23.42659]
[1724171126969,0.40509696,2585.6,2585.1,29.43336333]
[1724171127239,0.40509696,2585.6,2585.2,29.906]
[1724171127449,0.40509696,2585.6,2585.3,0.55]
[1724171129561,0.06594984,2585.5,2585.3,0.55]
[1724171130276,7.73574,2585.4,2585.3,0.55]
[1724171130460,3.86847,2585.0,2584.9,9.2444]
[1724171130862,3.93429511,2585.0,2584.9,9.2444]
[1724171131281,0.06582511,2585.0,2584.9,9.2444]
[1724171131792,0.0656833,2585.0,2584.9,9.2444]
[1724171131947,3.8681,2585.3,2584.9,9.7944]
[1724171132147,0.06581261,2585.2,2585.0,0.55]
[1724171132348,6.86797,2585.4,2585.0,0.55]
[1724171132606,3.06587727,2585.3,2585.1,0.3887]
[1724171132891,3.06587727,2585.3,2585.2,9.8358]
[1724171132892,0.06587727,2585.3,2585.2,9.8358]
[1724171133252,3.0,2585.4,2585.2,9.8358]
[1724171133478,0.0658153,2585.3,2585.2,9.8358]
[1724171133888,3.0,2585.5,2585.2,9.8358]
[1724171134190,6.86774,2585.5,2585.2,9.8358]
[1724171134389,0.06588339,2585.4,2585.2,29.3058]
[1724171135619,0.06588339,2585.4,2585.3,9.992]
[1724171135766,0.06588339,2585.4,2585.3,10.542]
[1724171136224,0.06588339,2585.4,2585.3,30.012]
[1724171136873,6.86755,2585.7,2585.3,30.012]
[1724171137219,3.86755,2585.7,2585.4,20.02]
[1724171137595,3.86755,2585.7,2585.4,23.318145]
[1724171138028,0.06613264,2585.6,2585.4,23.318145]
[1724171138331,3.86759,2585.6,2585.4,23.706845]
[1724171138534,0.066068,2585.5,2585.4,20.4087]
[1724171138766,0.066068,2585.5,2585.4,20.02]
[1724171138906,0.066068,2585.5,2585.4,20.4087]
[1724171139432,0.066068,2585.5,2585.4,20.02]
[1724171139732,0.066068,2585.5,2585.4,20.4087]
[1724171140542,3.86744,2585.7,2585.4,20.4087]
[1724171140695,0.06603964,2585.5,2585.4,20.4087]
[1724171140895,3.86744,2585.7,2585.4,20.4087]
[1724171141147,0.066068,2585.5,2585.4,20.4087]
[1724171141325,3.86744,2585.7,2585.4,20.4087]
[1724171141499,0.066068,2585.5,2585.4,20.4087]
[1724171141700,3.86744,2585.7,2585.4,20.4087]
[1724171141895,0.06603964,2585.5,2585.4,20.4087]
[1724171142102,3.86744,2585.7,2585.4,20.4087]
[1724171142436,3.86736,2585.8,2585.4,20.02]
[1724171142437,3.86758,2585.6,2585.4,20.02]
[1724171142662,3.93371264,2585.6,2585.4,20.02]
[1724171142832,7.73544,2585.5,2585.4,19.47]
[1724171143150,7.80173483,2585.5,2585.4,19.47]
[1724171143333,0.06629483,2585.5,2585.4,19.47]
[1724171143714,0.06629483,2585.5,2585.4,30.8659]
[1724171143912,0.06629483,2585.5,2585.4,31.2546]
[1724171144252,3.86722,2585.9,2585.5,9.4489]
[1724171144411,3.86749,2585.7,2585.6,0.55]
[1724171145820,3.86738,2585.8,2585.6,0.55]
[1724171147453,3.86715,2585.9,2585.6,0.55]
[1724171149054,3.86734,2585.8,2585.6,0.55]
[1724171149629,3.86742,2585.7,2585.6,0.55]
[1724171151595,3.86728,2585.8,2585.6,0.55]
[1724171151749,3.86742,2585.7,2585.6,0.55]
[1724171152398,3.86742,2585.7,2585.5,0.55]
[1724171152563,3.86714,2585.9,2585.5,0.55]
[1724171152564,3.86729,2585.8,2585.5,0.55]
[1724171152987,3.86713,2585.9,2585.6,9.2833]
[1724171153163,0.06638564,2585.7,2585.6,9.2833]
[1724171153492,0.06635729,2585.7,2585.6,9.8333]
[1724171153695,3.0,2585.9,2585.6,9.8333]
[1724171153881,3.0,2585.9,2585.7,0.55]
[1724171154080,6.86715,2585.9,2585.7,0.55]
[1724171154283,6.86715,2585.9,2585.7,9.9916]
[1724171154487,6.86715,2585.9,2585.8,0.55]
[1724171159164,10.7343,2585.9,2585.8,0.55]
[1724171159363,7.73455,2585.8,2585.7,0.55]
[1724171161516,3.0,2585.9,2585.7,0.55]
[1724171161858,0.40501692,2586.1,2585.7,0.55]
[1724171162092,7.27194692,2586.1,2585.8,9.178]
[1724171162402,3.86697,2586.0,2585.9,0.55]
[1724171162609,6.86697,2586.0,2585.9,20.02]
[1724171163314,3.0,2586.0,2585.9,3.26378864]
[1724171163613,0.40501692,2586.1,2585.9,3.26378864]
[1724171164515,4.27183692,2586.1,2586.0,9.0647]
[1724171164664,4.27183692,2586.1,2586.0,9.6147]
[1724171164665,7.27183692,2586.1,2586.0,9.6147]
[1724171164869,3.8672,2585.9,2585.7,19.47]
[1724171165588,3.8672,2585.9,2585.7,22.32347]
[1724171165797,7.27189692,2586.1,2585.8,9.9516]
[1724171165798,11.13884692,2586.1,2585.8,9.9516]
[1724171165998,6.86704,2586.0,2585.8,9.9516]
[1724171166187,3.86712,2585.9,2585.8,9.9516]
[1724171166712,7.73424,2585.9,2585.8,9.9516]
[1724171167013,3.86712,2585.9,2585.8,29.4216]
[1724171167170,3.86712,2585.9,2585.8,29.9716]
[1724171167374,3.0,2586.0,2585.8,29.9716]
[1724171167375,6.86697,2586.0,2585.8,29.9716]
[1724171167716,6.86697,2586.0,2585.9,0.55]
[1724171168213,6.93205642,2586.0,2585.9,0.55]
[1724171169318,3.06508642,2586.0,2585.9,0.55]
[1724171169676,6.93205642,2586.0,2585.9,0.55]
[1724171171015,10.79902642,2586.0,2585.9,0.55]
[1724171171224,3.86757,2585.6,2585.5,28.8836]
[1724171171512,3.93253059,2585.6,2585.5,28.8836]
[1724171172011,3.93253059,2585.6,2585.5,19.47]
[1724171172012,7.80010059,2585.6,2585.5,19.47]
[1724171172317,6.93253059,2585.6,2585.5,19.47]
[1724171172615,3.06496059,2585.6,2585.5,19.47]
[1724171172936,0.06496059,2585.6,2585.5,30.8306]
[1724171173223,3.0,2585.9,2585.5,30.8306]
[1724171173224,6.86714,2585.9,2585.5,30.8306]
[1724171173404,0.06497863,2585.6,2585.5,30.8306]
[1724171173575,7.89627705,2586.0,2585.5,31.7693]
[1724171173921,3.86714,2585.9,2585.6,3.72693]
[1724171175627,3.86731,2585.8,2585.6,0.55]
[1724171176094,3.86714,2585.9,2585.7,19.47]
[1724171176297,7.7344,2585.9,2585.8,0.55]
[1724171176499,11.76366705,2585.9,2585.8,0.55]
[1724171177514,7.89640705,2585.9,2585.8,0.55]
[1724171179182,4.02926705,2585.9,2585.8,0.55]
[1724171179385,3.86698,2586.0,2585.8,0.55]